[Event "Early-Titled-Tuesday-Blitz-November-28-2023"]
[Site "Chess.com"]
[Date "2023.11.28"]
[Round "11"]
[White "KaydenTroffChess"]
[Black "KononenkoD"]
[Result "1-0"]
[WhiteElo "2791"]
[BlackElo "2543"]
[TimeControl "180+1"]
[EndTime "10:07:32 PST"]
[Termination "KaydenTroffChess won by checkmate"]

1. d4 {[%clk 0:03:00.9]} 1... d5 {[%clk 0:02:59]} 2. Nf3 {[%clk 0:03:01.3]} 2...
c6 {[%clk 0:02:57.7]} 3. Bf4 {[%clk 0:03:01.6]} 3... Qb6 {[%clk 0:02:55.9]} 4.
e3 {[%clk 0:02:54.5]} 4... Qxb2 {[%clk 0:02:54.1]} 5. Nbd2 {[%clk 0:02:54.8]}
5... Qb6 {[%clk 0:02:51.7]} 6. c4 {[%clk 0:02:54.6]} 6... Nf6 {[%clk 0:02:50]}
7. Bd3 {[%clk 0:02:39.7]} 7... Nbd7 {[%clk 0:02:31.9]} 8. O-O {[%clk 0:02:38.6]}
8... e6 {[%clk 0:02:32.2]} 9. Ne5 {[%clk 0:02:36.1]} 9... Nxe5 {[%clk
0:02:31.4]} 10. Bxe5 {[%clk 0:02:36.1]} 10... Be7 {[%clk 0:02:31.1]} 11. f4
{[%clk 0:02:32.8]} 11... O-O {[%clk 0:02:30.2]} 12. Rf3 {[%clk 0:02:32.2]} 12...
Qb2 {[%clk 0:02:14.4]} 13. Rb1 {[%clk 0:02:20.8]} 13... Qa3 {[%clk 0:02:09.1]}
14. e4 {[%clk 0:02:10.4]} 14... dxe4 {[%clk 0:01:58]} 15. Nxe4 {[%clk
0:02:00.8]} 15... Qxa2 {[%clk 0:01:57]} 16. Nxf6+ {[%clk 0:01:54.1]} 16... Bxf6
{[%clk 0:01:54.5]} 17. Bxf6 {[%clk 0:01:53.1]} 17... gxf6 {[%clk 0:01:54.5]} 18.
Bxh7+ {[%clk 0:01:51.2]} 18... Kh8 {[%clk 0:01:52.9]} 19. Rh3 {[%clk 0:01:48.8]}
19... f5 {[%clk 0:01:52.7]} 20. Bxf5+ {[%clk 0:01:47.2]} 20... Kg7 {[%clk
0:01:52.5]} 21. Qg4+ {[%clk 0:01:47.8]} 21... Kf6 {[%clk 0:01:52.4]} 22. Qg5#
{[%clk 0:01:48.5]} 1-0

[Event "Early-Titled-Tuesday-Blitz-November-28-2023"]
[Site "Chess.com"]
[Date "2023.11.28"]
[Round "11"]
[White "SashaKuzhilniy"]
[Black "ural58"]
[Result "1-0"]
[WhiteElo "2648"]
[BlackElo "2484"]
[TimeControl "180+1"]
[EndTime "10:07:34 PST"]
[Termination "SashaKuzhilniy won by resignation"]

1. b3 {[%clk 0:03:00.9]} 1... e5 {[%clk 0:02:36.9]} 2. Bb2 {[%clk 0:03:01.8]}
2... Nc6 {[%clk 0:02:36.3]} 3. e3 {[%clk 0:03:02]} 3... d5 {[%clk 0:02:34.7]} 4.
Bb5 {[%clk 0:03:00.5]} 4... Ne7 {[%clk 0:02:26.3]} 5. Nf3 {[%clk 0:02:59.4]}
5... e4 {[%clk 0:02:18.2]} 6. Ne5 {[%clk 0:02:58.6]} 6... a6 {[%clk 0:02:16.6]}
7. Nxc6 {[%clk 0:02:58.3]} 7... bxc6 {[%clk 0:02:14.2]} 8. Be2 {[%clk
0:02:56.7]} 8... h5 {[%clk 0:02:12.7]} 9. Bxh5 {[%clk 0:02:55]} 9... Qd6 {[%clk
0:02:11]} 10. h3 {[%clk 0:02:52.6]} 10... Nf5 {[%clk 0:02:04]} 11. d3 {[%clk
0:02:42]} 11... Nh4 {[%clk 0:02:02.2]} 12. Kf1 {[%clk 0:02:38.6]} 12... g6
{[%clk 0:02:01.4]} 13. Bxh8 {[%clk 0:02:37.1]} 13... gxh5 {[%clk 0:02:01.3]} 14.
Qxh5 {[%clk 0:02:35.1]} 14... Ng6 {[%clk 0:01:56.6]} 15. Nd2 {[%clk 0:02:25.5]}
15... exd3 {[%clk 0:01:56.4]} 16. cxd3 {[%clk 0:02:25.5]} 16... a5 {[%clk
0:01:57.1]} 17. Nf3 {[%clk 0:02:18.7]} 17... Ba6 {[%clk 0:01:56.6]} 18. Rd1
{[%clk 0:02:14.4]} 18... a4 {[%clk 0:01:55.7]} 19. Be5 {[%clk 0:02:03.7]} 19...
Qa3 {[%clk 0:01:44.1]} 20. Kg1 {[%clk 0:02:00.1]} 20... Qxa2 {[%clk 0:01:43.3]}
21. bxa4 {[%clk 0:02:00.3]} 21... Qxf2+ {[%clk 0:01:43]} 22. Kxf2 {[%clk
0:01:59.2]} 1-0

[Event "Early-Titled-Tuesday-Blitz-November-28-2023"]
[Site "Chess.com"]
[Date "2023.11.28"]
[Round "11"]
[White "bazar-wokzal"]
[Black "szachuspl"]
[Result "1-0"]
[WhiteElo "2630"]
[BlackElo "2522"]
[TimeControl "180+1"]
[EndTime "10:08:09 PST"]
[Termination "bazar-wokzal won by resignation"]

1. e4 {[%clk 0:03:00.9]} 1... c6 {[%clk 0:02:58.6]} 2. d4 {[%clk 0:03:00.4]}
2... d5 {[%clk 0:02:59.1]} 3. f3 {[%clk 0:03:00.9]} 3... Nf6 {[%clk 0:02:49.6]}
4. e5 {[%clk 0:02:57.8]} 4... Ng8 {[%clk 0:02:49.8]} 5. Bd3 {[%clk 0:02:54.9]}
5... g6 {[%clk 0:02:44.9]} 6. Bf4 {[%clk 0:02:50.1]} 6... Bg7 {[%clk 0:02:43.9]}
7. Nc3 {[%clk 0:02:42.3]} 7... Qb6 {[%clk 0:02:42.9]} 8. Nge2 {[%clk 0:02:40.9]}
8... Qxb2 {[%clk 0:02:41.6]} 9. O-O {[%clk 0:02:38.3]} 9... Nh6 {[%clk
0:02:39.6]} 10. Qd2 {[%clk 0:02:37.5]} 10... Nf5 {[%clk 0:02:37.1]} 11. Rab1
{[%clk 0:02:32.5]} 11... Qa3 {[%clk 0:02:37]} 12. g4 {[%clk 0:02:32.7]} 12...
Nh4 {[%clk 0:02:28.5]} 13. Bg5 {[%clk 0:02:31.8]} 13... Nxf3+ {[%clk 0:02:25.1]}
14. Rxf3 {[%clk 0:02:31.3]} 14... Bxg4 {[%clk 0:02:25.3]} 15. Rg3 {[%clk
0:02:00]} 15... Bc8 {[%clk 0:02:20.7]} 16. Nxd5 {[%clk 0:01:55.8]} 16... Qxa2
{[%clk 0:02:09]} 17. Nc7+ {[%clk 0:01:50.2]} 17... Kd8 {[%clk 0:02:08.5]} 18.
Nc3 {[%clk 0:01:50.4]} 18... Qxb1+ {[%clk 0:01:52.2]} 19. Nxb1 {[%clk
0:01:49.7]} 19... Kxc7 {[%clk 0:01:52.9]} 20. Bxe7 {[%clk 0:01:49.3]} 20... Be6
{[%clk 0:01:52.2]} 21. Bd6+ {[%clk 0:01:47.2]} 21... Kc8 {[%clk 0:01:51.9]} 22.
c4 {[%clk 0:01:44.8]} 22... Nd7 {[%clk 0:01:50.8]} 23. Nc3 {[%clk 0:01:44.6]}
23... h5 {[%clk 0:01:47.6]} 24. d5 {[%clk 0:01:43.5]} 24... Bg4 {[%clk
0:01:46.5]} 25. dxc6 {[%clk 0:01:37.9]} 25... bxc6 {[%clk 0:01:45]} 26. c5
{[%clk 0:01:38.3]} 26... Nxe5 {[%clk 0:01:44.6]} 27. Ba6+ {[%clk 0:01:36.8]} 1-0

[Event "Early-Titled-Tuesday-Blitz-November-28-2023"]
[Site "Chess.com"]
[Date "2023.11.28"]
[Round "11"]
[White "emeli_chess"]
[Black "Zainullina_Nataliya"]
[Result "1-0"]
[WhiteElo "2377"]
[BlackElo "2204"]
[TimeControl "180+1"]
[EndTime "10:08:32 PST"]
[Termination "emeli_chess won by resignation"]

1. d4 {[%clk 0:03:00.9]} 1... d5 {[%clk 0:02:58.9]} 2. c4 {[%clk 0:03:00.5]}
2... e6 {[%clk 0:02:57.3]} 3. Nc3 {[%clk 0:03:00.7]} 3... Nf6 {[%clk 0:02:56.5]}
4. cxd5 {[%clk 0:03:00.6]} 4... exd5 {[%clk 0:02:55.4]} 5. Bg5 {[%clk
0:03:00.6]} 5... c6 {[%clk 0:02:54.9]} 6. Qc2 {[%clk 0:02:59.7]} 6... Be7 {[%clk
0:02:53.2]} 7. e3 {[%clk 0:02:59.3]} 7... Be6 {[%clk 0:02:49.4]} 8. Bd3 {[%clk
0:02:55.7]} 8... Nbd7 {[%clk 0:02:47.8]} 9. Nf3 {[%clk 0:02:54.2]} 9... O-O
{[%clk 0:02:44.4]} 10. O-O {[%clk 0:02:52.4]} 10... Re8 {[%clk 0:02:44.1]} 11.
h3 {[%clk 0:02:49.3]} 11... Nf8 {[%clk 0:02:43.9]} 12. Ne5 {[%clk 0:02:49.1]}
12... N6d7 {[%clk 0:02:30.2]} 13. Bf4 {[%clk 0:02:46.1]} 13... Nxe5 {[%clk
0:02:26.3]} 14. Bxe5 {[%clk 0:02:45.8]} 14... Bf6 {[%clk 0:02:23.8]} 15. Bg3
{[%clk 0:02:40.9]} 15... Rc8 {[%clk 0:02:17.9]} 16. b4 {[%clk 0:02:40.3]} 16...
a6 {[%clk 0:02:16.9]} 17. a4 {[%clk 0:02:39.6]} 17... Qd7 {[%clk 0:02:07.7]} 18.
Rab1 {[%clk 0:02:36.4]} 18... h5 {[%clk 0:02:01.1]} 19. Rfc1 {[%clk 0:02:33.9]}
19... h4 {[%clk 0:01:54.5]} 20. Bh2 {[%clk 0:02:32.5]} 20... Bxh3 {[%clk
0:01:28.4]} 21. gxh3 {[%clk 0:02:31.9]} 21... Qxh3 {[%clk 0:01:27.6]} 22. Bf5
{[%clk 0:02:27.7]} 22... Qf3 {[%clk 0:01:25.1]} 23. Bxc8 {[%clk 0:02:18.4]}
23... Rxc8 {[%clk 0:01:18.2]} 24. Qe2 {[%clk 0:02:17.2]} 24... Qf5 {[%clk
0:01:17.5]} 25. f4 {[%clk 0:02:11.9]} 25... Ng6 {[%clk 0:01:14.2]} 26. Kh1
{[%clk 0:02:10.2]} 26... h3 {[%clk 0:01:08.6]} 27. Rg1 {[%clk 0:02:09.4]} 27...
Nh4 {[%clk 0:01:06.2]} 28. Qg4 {[%clk 0:02:05.8]} 28... Qc2 {[%clk 0:00:57.9]}
29. Qxc8+ {[%clk 0:02:04.5]} 1-0

[Event "Early-Titled-Tuesday-Blitz-November-28-2023"]
[Site "Chess.com"]
[Date "2023.11.28"]
[Round "11"]
[White "Let_it_be_1"]
[Black "ArtemDyachuk"]
[Result "0-1"]
[WhiteElo "2658"]
[BlackElo "2547"]
[TimeControl "180+1"]
[EndTime "10:09:33 PST"]
[Termination "ArtemDyachuk won by resignation"]

1. e4 {[%clk 0:03:00.9]} 1... e5 {[%clk 0:02:58]} 2. Nf3 {[%clk 0:03:00.7]} 2...
Nf6 {[%clk 0:02:57.4]} 3. Nxe5 {[%clk 0:03:00.2]} 3... d6 {[%clk 0:02:54.3]} 4.
Nf3 {[%clk 0:03:00.2]} 4... Nxe4 {[%clk 0:02:54.7]} 5. Qe2 {[%clk 0:03:00.6]}
5... Qe7 {[%clk 0:02:53.3]} 6. d3 {[%clk 0:03:00.9]} 6... Nf6 {[%clk 0:02:53.3]}
7. Bg5 {[%clk 0:03:01]} 7... Be6 {[%clk 0:02:46.2]} 8. Nc3 {[%clk 0:03:00.7]}
8... Nbd7 {[%clk 0:02:45.1]} 9. O-O-O {[%clk 0:02:55.8]} 9... h6 {[%clk
0:02:42.2]} 10. Bf4 {[%clk 0:02:54.9]} 10... g5 {[%clk 0:02:39.6]} 11. Bd2
{[%clk 0:02:47.4]} 11... Bg7 {[%clk 0:02:37.9]} 12. Nd4 {[%clk 0:02:43.7]} 12...
Ne5 {[%clk 0:02:34.4]} 13. Nxe6 {[%clk 0:02:38.2]} 13... fxe6 {[%clk 0:02:31.5]}
14. Re1 {[%clk 0:02:28.6]} 14... O-O-O {[%clk 0:02:26.7]} 15. f4 {[%clk
0:02:08.1]} 15... gxf4 {[%clk 0:02:20]} 16. Bxf4 {[%clk 0:02:08]} 16... Kb8
{[%clk 0:02:13.6]} 17. Bxe5 {[%clk 0:02:03.3]} 17... dxe5 {[%clk 0:02:14.5]} 18.
g3 {[%clk 0:01:59.6]} 18... h5 {[%clk 0:02:11.1]} 19. Bg2 {[%clk 0:01:57.6]}
19... Bh6+ {[%clk 0:02:06.2]} 20. Kb1 {[%clk 0:01:57.1]} 20... Bg7 {[%clk
0:01:46.2]} 21. Rhf1 {[%clk 0:01:45.7]} 21... h4 {[%clk 0:01:43.8]} 22. g4
{[%clk 0:01:39.3]} 22... Nd5 {[%clk 0:01:43]} 23. Ne4 {[%clk 0:01:27.3]} 23...
Bh6 {[%clk 0:01:38.5]} 24. Bh1 {[%clk 0:01:07.8]} 24... Bf4 {[%clk 0:01:35.4]}
25. Nd2 {[%clk 0:00:56.3]} 25... Qb4 {[%clk 0:01:27.9]} 26. Ka1 {[%clk
0:00:53.1]} 26... Qxd2 {[%clk 0:01:23.4]} 27. Qxd2 {[%clk 0:00:52.8]} 27... Bxd2
{[%clk 0:01:23.5]} 28. Rxe5 {[%clk 0:00:53.7]} 28... Rhf8 {[%clk 0:01:23.3]} 29.
Rxf8 {[%clk 0:00:45.7]} 29... Rxf8 {[%clk 0:01:22.1]} 30. a4 {[%clk 0:00:46.6]}
30... Rf1+ {[%clk 0:01:20.9]} 31. Ka2 {[%clk 0:00:46.5]} 31... Rxh1 {[%clk
0:01:21.4]} 32. Rxe6 {[%clk 0:00:46.1]} 32... a6 {[%clk 0:01:21.2]} 0-1

[Event "Early-Titled-Tuesday-Blitz-November-28-2023"]
[Site "Chess.com"]
[Date "2023.11.28"]
[Round "11"]
[White "infantaria08"]
[Black "SmirnovTimofey2000"]
[Result "1-0"]
[WhiteElo "2202"]
[BlackElo "2071"]
[TimeControl "180+1"]
[EndTime "10:09:42 PST"]
[Termination "infantaria08 won by checkmate"]

1. d4 {[%clk 0:03:00.9]} 1... d5 {[%clk 0:02:57.7]} 2. Bf4 {[%clk 0:03:01.3]}
2... Bf5 {[%clk 0:02:56.3]} 3. e3 {[%clk 0:02:54.9]} 3... e6 {[%clk 0:02:56.6]}
4. c4 {[%clk 0:02:55.5]} 4... Nf6 {[%clk 0:02:56.1]} 5. Nc3 {[%clk 0:02:53.4]}
5... c6 {[%clk 0:02:55.6]} 6. Qb3 {[%clk 0:02:54]} 6... Qb6 {[%clk 0:02:48.5]}
7. c5 {[%clk 0:02:54.3]} 7... Qxb3 {[%clk 0:02:45]} 8. axb3 {[%clk 0:02:55.2]}
8... a6 {[%clk 0:02:35.7]} 9. b4 {[%clk 0:02:53.1]} 9... Be7 {[%clk 0:02:28.7]}
10. b5 {[%clk 0:02:50.7]} 10... cxb5 {[%clk 0:02:28.1]} 11. Bxb5+ {[%clk
0:02:50.3]} 11... Nbd7 {[%clk 0:02:25.4]} 12. h3 {[%clk 0:02:36.8]} 12... O-O
{[%clk 0:02:24.5]} 13. Ba4 {[%clk 0:02:35.7]} 13... h6 {[%clk 0:02:18.4]} 14. f3
{[%clk 0:02:30.7]} 14... Rfc8 {[%clk 0:02:04.7]} 15. g4 {[%clk 0:02:27.1]} 15...
Bh7 {[%clk 0:02:04.4]} 16. Nge2 {[%clk 0:02:19.7]} 16... h5 {[%clk 0:01:48.2]}
17. b4 {[%clk 0:02:18.8]} 17... hxg4 {[%clk 0:01:36.8]} 18. hxg4 {[%clk
0:02:19.7]} 18... Nf8 {[%clk 0:01:36.2]} 19. Kd2 {[%clk 0:02:07.3]} 19... Ng6
{[%clk 0:01:34.7]} 20. Bg3 {[%clk 0:02:02.7]} 20... Ne8 {[%clk 0:01:16.6]} 21.
Bc2 {[%clk 0:01:56.7]} 21... Nf8 {[%clk 0:01:15.6]} 22. Na4 {[%clk 0:01:45.4]}
22... Bxc2 {[%clk 0:01:11.2]} 23. Kxc2 {[%clk 0:01:46.3]} 23... Nd7 {[%clk
0:01:11.7]} 24. Nec3 {[%clk 0:01:39.4]} 24... Nc7 {[%clk 0:01:11.4]} 25. Rh2
{[%clk 0:01:30.3]} 25... g6 {[%clk 0:01:11.6]} 26. Rah1 {[%clk 0:01:27.6]} 26...
Kg7 {[%clk 0:01:08.9]} 27. Rh7+ {[%clk 0:01:26.4]} 27... Kf6 {[%clk 0:01:08.8]}
28. e4 {[%clk 0:00:44.4]} 28... dxe4 {[%clk 0:01:08.2]} 29. Nxe4# {[%clk
0:00:43.8]} 1-0

[Event "Early-Titled-Tuesday-Blitz-November-28-2023"]
[Site "Chess.com"]
[Date "2023.11.28"]
[Round "11"]
[White "dmosesov"]
[Black "nindjaxx8"]
[Result "1-0"]
[WhiteElo "2620"]
[BlackElo "2468"]
[TimeControl "180+1"]
[EndTime "10:09:44 PST"]
[Termination "dmosesov won by resignation"]

1. Nf3 {[%clk 0:03:00.9]} 1... d5 {[%clk 0:02:56.6]} 2. c4 {[%clk 0:03:01.3]}
2... e6 {[%clk 0:02:55.8]} 3. g3 {[%clk 0:03:01.3]} 3... Nf6 {[%clk 0:02:55.8]}
4. Bg2 {[%clk 0:03:01.7]} 4... Be7 {[%clk 0:02:56.3]} 5. O-O {[%clk 0:03:02.1]}
5... O-O {[%clk 0:02:56.8]} 6. b3 {[%clk 0:03:02.6]} 6... b6 {[%clk 0:02:56.7]}
7. Bb2 {[%clk 0:03:02.9]} 7... Bb7 {[%clk 0:02:57.2]} 8. e3 {[%clk 0:03:03.3]}
8... dxc4 {[%clk 0:02:55.5]} 9. bxc4 {[%clk 0:03:04.2]} 9... c5 {[%clk
0:02:55.8]} 10. Nc3 {[%clk 0:03:03.3]} 10... Na6 {[%clk 0:02:52.6]} 11. Qe2
{[%clk 0:03:02.5]} 11... Nb4 {[%clk 0:02:50.6]} 12. Ne1 {[%clk 0:02:57.3]} 12...
Bxg2 {[%clk 0:02:49.2]} 13. Kxg2 {[%clk 0:02:58.2]} 13... Qd7 {[%clk 0:02:46.9]}
14. a3 {[%clk 0:02:58]} 14... Nc6 {[%clk 0:02:46.6]} 15. d3 {[%clk 0:02:57.5]}
15... Rad8 {[%clk 0:02:46.3]} 16. f4 {[%clk 0:02:56.2]} 16... Na5 {[%clk
0:02:45.8]} 17. g4 {[%clk 0:02:47.4]} 17... Ne8 {[%clk 0:02:34.3]} 18. Rf3
{[%clk 0:02:37.7]} 18... Qb7 {[%clk 0:02:30.3]} 19. Kg1 {[%clk 0:02:35.1]} 19...
g6 {[%clk 0:01:51]} 20. g5 {[%clk 0:01:50.8]} 20... Nd6 {[%clk 0:01:48.1]} 21.
Rh3 {[%clk 0:01:42.4]} 21... Nf5 {[%clk 0:01:48.6]} 22. Ne4 {[%clk 0:01:07.1]}
22... Nxc4 {[%clk 0:00:28.7]} 23. Bf6 {[%clk 0:01:06.1]} 23... Bxf6 {[%clk
0:00:29.3]} 24. Nxf6+ {[%clk 0:01:04.9]} 1-0

[Event "Early-Titled-Tuesday-Blitz-November-28-2023"]
[Site "Chess.com"]
[Date "2023.11.28"]
[Round "11"]
[White "Iskusnyh"]
[Black "Arimin1329"]
[Result "1-0"]
[WhiteElo "2555"]
[BlackElo "2402"]
[TimeControl "180+1"]
[EndTime "10:09:49 PST"]
[Termination "Iskusnyh won by resignation"]

1. d4 {[%clk 0:03:00.9]} 1... Nf6 {[%clk 0:02:59]} 2. c4 {[%clk 0:03:00.3]} 2...
b6 {[%clk 0:02:57.3]} 3. Nc3 {[%clk 0:02:50.9]} 3... Bb7 {[%clk 0:02:54.9]} 4.
Qc2 {[%clk 0:02:46.6]} 4... d5 {[%clk 0:02:49.7]} 5. cxd5 {[%clk 0:02:46]} 5...
Nxd5 {[%clk 0:02:48.8]} 6. Nf3 {[%clk 0:02:46.2]} 6... g6 {[%clk 0:02:47.1]} 7.
e4 {[%clk 0:02:45.3]} 7... Nxc3 {[%clk 0:02:46.7]} 8. bxc3 {[%clk 0:02:44.9]}
8... Bg7 {[%clk 0:02:47.6]} 9. Bb5+ {[%clk 0:02:42.3]} 9... c6 {[%clk
0:02:47.2]} 10. Bd3 {[%clk 0:02:40.8]} 10... O-O {[%clk 0:02:47.6]} 11. O-O
{[%clk 0:02:39.9]} 11... Nd7 {[%clk 0:02:45.7]} 12. e5 {[%clk 0:02:21.1]} 12...
c5 {[%clk 0:02:44.1]} 13. Be4 {[%clk 0:02:16.5]} 13... Bxe4 {[%clk 0:02:35.9]}
14. Qxe4 {[%clk 0:02:15.8]} 14... e6 {[%clk 0:02:35.2]} 15. Bg5 {[%clk
0:02:14.4]} 15... Qc7 {[%clk 0:02:31.8]} 16. Be7 {[%clk 0:02:04.6]} 16... Rfe8
{[%clk 0:02:26.4]} 17. Bd6 {[%clk 0:02:04.2]} 17... Qc8 {[%clk 0:02:24.6]} 18.
Rfd1 {[%clk 0:02:01.1]} 18... cxd4 {[%clk 0:02:22.4]} 19. cxd4 {[%clk
0:01:59.8]} 19... Qa6 {[%clk 0:02:19.6]} 20. h4 {[%clk 0:01:49.7]} 20... Rac8
{[%clk 0:02:15.1]} 21. h5 {[%clk 0:01:49.1]} 21... Qa4 {[%clk 0:02:07.8]} 22.
Qb7 {[%clk 0:01:43.6]} 22... Rc2 {[%clk 0:01:51.9]} 23. Rd3 {[%clk 0:01:28.2]}
23... Nf8 {[%clk 0:01:22.4]} 24. Ra3 {[%clk 0:01:17.6]} 24... Qc4 {[%clk
0:01:16.1]} 25. Rxa7 {[%clk 0:01:04.5]} 25... Rc1+ {[%clk 0:01:16.2]} 26. Kh2
{[%clk 0:01:04.6]} 26... Bh6 {[%clk 0:00:48.4]} 27. Qxf7+ {[%clk 0:01:01.5]}
27... Kh8 {[%clk 0:00:48.6]} 28. Bxf8 {[%clk 0:00:51.7]} 1-0

[Event "Early-Titled-Tuesday-Blitz-November-28-2023"]
[Site "Chess.com"]
[Date "2023.11.28"]
[Round "11"]
[White "Flawless_Fighter"]
[Black "Narek_Ghimoyan"]
[Result "1-0"]
[WhiteElo "2786"]
[BlackElo "2343"]
[TimeControl "180+1"]
[EndTime "10:09:51 PST"]
[Termination "Flawless_Fighter won by resignation"]

1. e4 {[%clk 0:03:00.9]} 1... c5 {[%clk 0:02:59.1]} 2. Nf3 {[%clk 0:03:00.5]}
2... d6 {[%clk 0:02:58.7]} 3. Bb5+ {[%clk 0:03:00.9]} 3... Nd7 {[%clk
0:02:57.2]} 4. O-O {[%clk 0:03:00.3]} 4... a6 {[%clk 0:02:39.7]} 5. Bd3 {[%clk
0:03:00.2]} 5... Ngf6 {[%clk 0:02:14.3]} 6. Re1 {[%clk 0:02:59.9]} 6... b5
{[%clk 0:02:09.9]} 7. a4 {[%clk 0:02:59]} 7... c4 {[%clk 0:02:05.7]} 8. Bf1
{[%clk 0:02:58.9]} 8... Bb7 {[%clk 0:02:06]} 9. axb5 {[%clk 0:02:57.3]} 9...
axb5 {[%clk 0:02:06.9]} 10. Rxa8 {[%clk 0:02:57.5]} 10... Qxa8 {[%clk
0:02:06.6]} 11. d3 {[%clk 0:02:57]} 11... e6 {[%clk 0:02:01.7]} 12. Nc3 {[%clk
0:02:56]} 12... Be7 {[%clk 0:01:58.8]} 13. Nxb5 {[%clk 0:02:55.5]} 13... O-O
{[%clk 0:01:56.7]} 14. dxc4 {[%clk 0:02:48.3]} 14... Bxe4 {[%clk 0:01:54]} 15.
Be2 {[%clk 0:02:40.8]} 15... Rd8 {[%clk 0:01:50.6]} 16. b3 {[%clk 0:02:38.5]}
16... e5 {[%clk 0:01:47.7]} 17. Bb2 {[%clk 0:02:36.9]} 17... Nc5 {[%clk
0:01:46]} 18. Qa1 {[%clk 0:02:26.9]} 18... Qc6 {[%clk 0:01:43.1]} 19. Qc1 {[%clk
0:02:21.7]} 19... Ne6 {[%clk 0:01:41.7]} 20. h3 {[%clk 0:02:09.9]} 20... Nf4
{[%clk 0:01:41]} 21. Qe3 {[%clk 0:02:10]} 21... N6h5 {[%clk 0:01:32.4]} 22. Bd1
{[%clk 0:01:59.6]} 22... f5 {[%clk 0:01:19.1]} 23. Nc3 {[%clk 0:01:59.1]} 23...
Nxg2 {[%clk 0:01:14.4]} 24. Kxg2 {[%clk 0:01:56.5]} 24... Nf4+ {[%clk
0:01:10.3]} 25. Kh2 {[%clk 0:01:56.5]} 25... Qe8 {[%clk 0:00:52.9]} 26. Nxe4
{[%clk 0:01:55.3]} 26... Qh5 {[%clk 0:00:53.5]} 27. Nfg5 {[%clk 0:01:41.4]}
27... Qg6 {[%clk 0:00:51.8]} 28. Rg1 {[%clk 0:01:35.8]} 28... h6 {[%clk
0:00:51.5]} 29. Qg3 {[%clk 0:01:20.3]} 29... hxg5 {[%clk 0:00:48.9]} 30. Nxg5
{[%clk 0:01:20]} 1-0

[Event "Early-Titled-Tuesday-Blitz-November-28-2023"]
[Site "Chess.com"]
[Date "2023.11.28"]
[Round "11"]
[White "koncheto"]
[Black "GMJustin"]
[Result "1-0"]
[WhiteElo "2526"]
[BlackElo "2311"]
[TimeControl "180+1"]
[EndTime "10:10:08 PST"]
[Termination "koncheto won on time"]

1. e4 {[%clk 0:03:00]} 1... e5 {[%clk 0:02:47.8]} 2. Nf3 {[%clk 0:02:59.4]} 2...
Nc6 {[%clk 0:02:47.3]} 3. d4 {[%clk 0:02:47.3]} 3... exd4 {[%clk 0:02:46.4]} 4.
Bc4 {[%clk 0:02:47.9]} 4... Bc5 {[%clk 0:02:42]} 5. c3 {[%clk 0:02:47.5]} 5...
Nf6 {[%clk 0:02:40.6]} 6. e5 {[%clk 0:02:45.4]} 6... d5 {[%clk 0:02:30.7]} 7.
Bb5 {[%clk 0:02:45.2]} 7... Ne4 {[%clk 0:02:29.3]} 8. cxd4 {[%clk 0:02:45]} 8...
Bb6 {[%clk 0:02:26.2]} 9. h3 {[%clk 0:02:40.8]} 9... O-O {[%clk 0:02:19.7]} 10.
O-O {[%clk 0:02:41]} 10... Bd7 {[%clk 0:02:02.9]} 11. Bxc6 {[%clk 0:01:56.5]}
11... Bxc6 {[%clk 0:02:01.9]} 12. Nc3 {[%clk 0:01:57.4]} 12... f6 {[%clk
0:01:45.9]} 13. Be3 {[%clk 0:01:39.3]} 13... Qd7 {[%clk 0:00:40.3]} 14. exf6
{[%clk 0:01:32.1]} 14... Rxf6 {[%clk 0:00:29.8]} 15. Ne5 {[%clk 0:01:28.7]}
15... Qe6 {[%clk 0:00:19.3]} 16. f3 {[%clk 0:01:01.1]} 16... Nxc3 {[%clk
0:00:18.2]} 17. bxc3 {[%clk 0:01:01.2]} 17... Bb5 {[%clk 0:00:17.2]} 18. Re1
{[%clk 0:00:59.9]} 18... Qd6 {[%clk 0:00:14.7]} 19. a4 {[%clk 0:00:54.7]} 1-0

[Event "Early-Titled-Tuesday-Blitz-November-28-2023"]
[Site "Chess.com"]
[Date "2023.11.28"]
[Round "11"]
[White "Herman-NY"]
[Black "Agibileg"]
[Result "0-1"]
[WhiteElo "2484"]
[BlackElo "2645"]
[TimeControl "180+1"]
[EndTime "10:10:15 PST"]
[Termination "Agibileg won on time"]

1. e4 {[%clk 0:03:00.9]} 1... e5 {[%clk 0:02:57.6]} 2. Nf3 {[%clk 0:03:01]} 2...
f5 {[%clk 0:02:55.5]} 3. Nxe5 {[%clk 0:02:46.2]} 3... Nf6 {[%clk 0:02:54.5]} 4.
d4 {[%clk 0:02:41.2]} 4... fxe4 {[%clk 0:02:50.5]} 5. Be2 {[%clk 0:02:23.1]}
5... d6 {[%clk 0:02:49.9]} 6. Nc4 {[%clk 0:02:23]} 6... d5 {[%clk 0:02:49.8]} 7.
Ne3 {[%clk 0:02:19.3]} 7... Bd6 {[%clk 0:02:48.3]} 8. c4 {[%clk 0:02:18.7]} 8...
c6 {[%clk 0:02:48.6]} 9. Nc3 {[%clk 0:02:18.2]} 9... Be6 {[%clk 0:02:47.7]} 10.
g4 {[%clk 0:01:55.2]} 10... O-O {[%clk 0:02:42.5]} 11. g5 {[%clk 0:01:52.6]}
11... c5 {[%clk 0:02:32.4]} 12. cxd5 {[%clk 0:01:28.4]} 12... Bh3 {[%clk
0:02:06.7]} 13. gxf6 {[%clk 0:01:13.6]} 13... Qxf6 {[%clk 0:02:05.3]} 14. Nxe4
{[%clk 0:01:13.9]} 14... Qf4 {[%clk 0:01:56.1]} 15. Qd3 {[%clk 0:00:33.9]} 15...
cxd4 {[%clk 0:01:36.8]} 16. Nc4 {[%clk 0:00:30.9]} 16... Bb4+ {[%clk 0:01:36.4]}
17. Bd2 {[%clk 0:00:28.2]} 17... Bg2 {[%clk 0:01:33.6]} 18. Rg1 {[%clk
0:00:11.9]} 18... Bxe4 {[%clk 0:01:32.4]} 19. Qxd4 {[%clk 0:00:11.3]} 19...
Bxd2+ {[%clk 0:01:23.6]} 20. Nxd2 {[%clk 0:00:11.7]} 20... Bg6 {[%clk
0:01:22.8]} 21. Qxf4 {[%clk 0:00:10.6]} 21... Rxf4 {[%clk 0:01:23.7]} 22. Rc1
{[%clk 0:00:06.5]} 22... Nd7 {[%clk 0:01:21.8]} 23. Rc7 {[%clk 0:00:06.8]} 23...
Ne5 {[%clk 0:01:20]} 24. Rg3 {[%clk 0:00:04]} 24... Rd8 {[%clk 0:01:05.5]} 0-1